bitfinex/quotes_BTCUSD_20250205
["timestamp","ask_amount","ask_price","bid_price","bid_amount"]
[1738749604123,1.06045665,97356.0,97355.0,0.0001069]
[1738749604724,1.05045665,97356.0,97355.0,0.0001069]
[1738749605057,1.11278124,97356.0,97355.0,0.0001069]
[1738749605268,1.21528489,97356.0,97355.0,0.0001069]
[1738749605670,1.22528489,97356.0,97355.0,0.0001069]
[1738749606079,1.21528489,97356.0,97355.0,0.0001069]
[1738749606682,1.20245595,97356.0,97355.0,0.0001069]
[1738749610107,0.99744865,97356.0,97355.0,0.0001069]
[1738749610652,0.96699146,97356.0,97355.0,0.0001069]
[1738749611902,1.06949511,97356.0,97355.0,0.0001069]
[1738749612497,1.06934887,97356.0,97355.0,0.0001069]
[1738749612879,1.09967288,97356.0,97355.0,0.0001069]
[1738749615749,0.99716923,97356.0,97355.0,0.0001069]
[1738749615976,0.86676923,97356.0,97355.0,0.0001069]
[1738749617224,0.81740676,97356.0,97355.0,0.0001069]
[1738749620358,0.83636483,97356.0,97355.0,0.0001069]
[1738749621637,0.68636483,97356.0,97355.0,0.0001069]
[1738749622628,0.68636483,97356.0,97355.0,0.2295819]
[1738749622629,0.53243807,97356.0,97355.0,0.2295819]
[1738749622825,0.53243807,97356.0,97355.0,0.37958555]
[1738749623600,0.53243807,97356.0,97355.0,0.1230069]
[1738749623785,0.53266257,97356.0,97355.0,0.1230069]
[1738749624192,0.6677775,97356.0,97355.0,0.0001069]
[1738749625252,0.5137045,97356.0,97355.0,0.25668555]
[1738749625452,0.5137045,97356.0,97355.0,0.33398555]
[1738749626818,0.5137045,97356.0,97355.0,0.0001069]
[1738749627021,0.6677775,97356.0,97355.0,0.0001069]
[1738749627446,0.5137045,97356.0,97355.0,0.0001069]
[1738749627564,0.5137045,97356.0,97355.0,0.1541819]
[1738749627897,0.5137045,97356.0,97355.0,0.0001069]
[1738749628418,0.6677775,97356.0,97355.0,0.0001069]
[1738749629043,0.5137045,97356.0,97355.0,0.0001069]
[1738749629242,0.5137045,97356.0,97355.0,0.1541819]
[1738749629566,0.5137045,97356.0,97355.0,0.0001069]
[1738749629788,0.5137045,97356.0,97355.0,0.17891055]
[1738749629986,0.5137045,97356.0,97355.0,0.33298555]
[1738749630936,0.5137045,97356.0,97355.0,0.0764069]
[1738749631142,0.5137045,97356.0,97355.0,0.0001069]
[1738749632069,0.6677775,97356.0,97355.0,0.0001069]
[1738749637279,0.5137045,97356.0,97355.0,0.0001069]
[1738749638038,0.6677775,97356.0,97355.0,0.0001069]
[1738749641402,0.77028115,97356.0,97355.0,0.0001069]
[1738749641596,0.6677775,97356.0,97355.0,0.0001069]
[1738749642026,0.7469775,97356.0,97355.0,0.0001069]
[1738749643332,0.79632868,97356.0,97355.0,0.0001069]
[1738749644350,0.95569383,97356.0,97355.0,0.0001069]
[1738749644507,1.10569383,97356.0,97355.0,0.0001069]
[1738749644705,1.20819748,97356.0,97355.0,0.0001069]
[1738749644917,1.22102684,97356.0,97355.0,0.0001069]
[1738749647243,1.11852319,97356.0,97355.0,0.0001069]
[1738749649056,1.11852319,97356.0,97355.0,0.0001069]
[1738749650521,0.304102,97338.0,97317.0,0.08218573]
[1738749650725,0.154108,97334.0,97317.0,0.08218573]
[1738749650925,0.25097877,97334.0,97317.0,0.08218573]
[1738749651126,0.2496943,97334.0,97317.0,0.08218573]
[1738749651381,0.29904548,97334.0,97317.0,0.08218573]
[1738749653257,0.29904548,97334.0,97318.0,0.154132]
[1738749653459,0.29904548,97334.0,97320.0,0.11331236]
[1738749654313,0.26867552,97334.0,97320.0,0.11331236]
[1738749654510,0.59192552,97334.0,97320.0,0.11331236]
[1738749661817,1.10540552,97334.0,97318.0,0.0474]
[1738749663039,1.13570415,97334.0,97318.0,0.0474]
[1738749663690,1.04011785,97334.0,97320.0,0.11331236]
[1738749668233,1.00981922,97334.0,97320.0,0.11331236]
[1738749670704,1.00981922,97334.0,97326.0,0.0828]
[1738749673496,0.85571122,97334.0,97326.0,0.288293]
[1738749673631,0.53246122,97334.0,97333.0,0.30303793]
[1738749673848,0.53246122,97334.0,97333.0,0.00022428]
[1738749675200,0.51348,97334.0,97333.0,0.00022428]
[1738749675997,0.51348,97334.0,97333.0,0.15433428]
[1738749676561,0.51348,97334.0,97333.0,0.30553793]
[1738749678702,0.51348,97334.0,97333.0,0.53433793]
[1738749678896,0.51348,97334.0,97333.0,0.55733793]
[1738749679101,0.51348,97334.0,97333.0,0.56745963]
[1738749679656,0.0002245,97337.0,97336.0,0.452405]
[1738749679845,0.01180786,97364.0,97363.0,0.154062]
[1738749680049,0.01180786,97364.0,97363.0,0.25656565]
[1738749680771,0.0002245,97370.0,97366.0,0.154057]
[1738749680983,0.0002245,97370.0,97363.0,0.25656565]
[1738749681204,0.0002245,97370.0,97365.0,0.154058]
[1738749681340,0.00150831,97370.0,97361.0,0.154064]
[1738749681557,0.154053,97369.0,97361.0,0.154064]
[1738749681793,0.00128385,97368.0,97362.0,0.154063]
[1738749681979,0.15533885,97368.0,97362.0,0.154063]
[1738749682403,0.00128385,97368.0,97359.0,0.205423]
[1738749682608,0.00128385,97368.0,97363.0,0.154062]
[1738749682785,0.00150835,97367.0,97363.0,0.154062]
[1738749683103,0.0002245,97364.0,97363.0,0.154062]
[1738749691193,0.0002245,97364.0,97363.0,0.25656565]
[1738749691398,0.0002245,97364.0,97363.0,0.37776565]
[1738749694749,0.0002245,97373.0,97363.0,0.37776565]
[1738749694750,15.4772084,97375.0,97374.0,0.154045]
[1738749697195,15.4772084,97375.0,97374.0,0.25654865]
[1738749698186,15.4772084,97375.0,97374.0,0.33614865]
[1738749698460,15.4772084,97375.0,97374.0,0.38594865]
[1738749698730,15.4772084,97375.0,97374.0,0.38703865]
[1738749699849,15.4582084,97375.0,97374.0,0.38703865]
[1738749704853,15.4392084,97375.0,97374.0,0.38689241]
[1738749709716,15.4202084,97375.0,97374.0,0.38689241]
[1738749711939,15.4202084,97375.0,97374.0,0.30729241]
[1738749713385,15.4202084,97375.0,97374.0,0.25749241]
[1738749714798,15.4012084,97375.0,97374.0,0.25749241]
[1738749716075,15.4012084,97375.0,97374.0,0.26473241]
[1738749716277,15.4012084,97375.0,97374.0,0.25749241]
[1738749716508,15.4012084,97375.0,97374.0,0.00109]
[1738749720112,15.4012084,97375.0,97374.0,0.0011968]
[1738749721235,15.4012084,97375.0,97374.0,0.1552418]
[1738749721672,15.4012084,97375.0,97374.0,0.25774545]
[1738749724944,15.4012084,97375.0,97374.0,0.0011968]
[1738749725145,15.73305505,97375.0,97374.0,0.0011968]
[1738749727202,15.75204998,97375.0,97374.0,0.0011968]
[1738749727411,15.76230153,97375.0,97374.0,0.0011968]
[1738749728277,15.65979788,97375.0,97374.0,0.0011968]
[1738749730273,15.64080295,97375.0,97374.0,0.0011968]
[1738749735333,15.48675995,97375.0,97374.0,0.0011968]
[1738749735658,15.4012084,97375.0,97374.0,0.25774545]
[1738749736420,15.4012084,97375.0,97374.0,0.33704545]
[1738749736842,15.4012084,97375.0,97374.0,0.38524545]
[1738749737218,15.4012084,97375.0,97374.0,0.40824545]
[1738749738204,15.4012084,97375.0,97374.0,0.55824545]
[1738749739886,15.3822084,97375.0,97374.0,0.55824545]
[1738749744826,15.2810524,97375.0,97374.0,0.89854545]
[1738749745025,15.22607261,97375.0,97374.0,1.03422621]
[1738749745691,15.18499461,97375.0,97374.0,1.03422621]
[1738749746088,15.18499461,97375.0,97374.0,0.99854545]
[1738749746602,15.12337761,97375.0,97374.0,0.99854545]
[1738749746803,15.08229961,97375.0,97374.0,0.99854545]
[1738749749760,15.06329961,97375.0,97374.0,0.99854545]
[1738749750291,15.06329961,97375.0,97374.0,0.89854545]
[1738749750425,15.06329961,97375.0,97374.0,0.88854545]
[1738749750761,15.06329961,97375.0,97374.0,0.99854545]
[1738749750903,15.06329961,97375.0,97374.0,0.89854545]
[1738749751303,15.06329961,97375.0,97374.0,0.88854545]
[1738749751504,15.06329961,97375.0,97374.0,0.89578545]
[1738749753138,15.06329961,97375.0,97374.0,0.88854545]
[1738749753341,15.06329961,97375.0,97374.0,0.89578545]
[1738749753611,15.06329961,97375.0,97374.0,0.72804545]
[1738749753810,15.06329961,97375.0,97374.0,0.73528545]
[1738749753929,15.06329961,97375.0,97374.0,0.75828545]
[1738749754757,15.04429961,97375.0,97374.0,0.75828545]
[1738749755612,15.04429961,97375.0,97374.0,0.43798545]
[1738749759895,15.02529961,97375.0,97374.0,0.43798545]
[1738749760579,14.98422161,97375.0,97374.0,0.53878545]
[1738749760798,14.92260461,97375.0,97374.0,0.53878545]
[1738749761009,14.88037191,97375.0,97374.0,0.58388545]
[1738749761364,14.79821591,97375.0,97374.0,0.58388545]
[1738749761590,14.77767691,97375.0,97374.0,0.90418545]
[1738749762307,14.73659891,97375.0,97374.0,0.90418545]
[1738749762528,14.67498191,97375.0,97374.0,0.90418545]
[1738749762733,14.67498191,97375.0,97374.0,0.89418545]
[1738749763066,14.67498191,97375.0,97374.0,0.90418545]
[1738749765329,14.65598191,97375.0,97374.0,0.90418545]
[1738749767937,14.65598191,97375.0,97374.0,0.75014045]
[1738749768155,14.65598191,97375.0,97374.0,0.74014045]
[1738749769545,14.65598191,97375.0,97374.0,0.65210045]
[1738749769752,14.63698191,97375.0,97374.0,0.61420045]
[1738749769888,14.63698191,97375.0,97374.0,0.59700045]
[1738749770276,14.63698191,97375.0,97374.0,0.58120045]
[1738749770404,14.63698191,97375.0,97374.0,0.59120045]
[1738749771231,14.63698191,97375.0,97374.0,0.61420045]
[1738749771889,14.63698191,97375.0,97374.0,0.60420045]
[1738749772100,14.63698191,97375.0,97374.0,0.55988576]
[1738749772321,14.63698191,97375.0,97374.0,0.56988576]
[1738749772524,14.63698191,97375.0,97374.0,0.66178576]
[1738749773701,14.37903437,97375.0,97374.0,0.66178576]
[1738749774296,14.33795637,97375.0,97374.0,0.68981416]
[1738749774499,14.31741737,97375.0,97374.0,0.68981416]
[1738749775323,14.20893602,97375.0,97374.0,0.66178576]
[1738749775551,14.16785802,97375.0,97374.0,0.81583076]
[1738749775726,14.14731902,97375.0,97374.0,0.81583076]
[1738749776463,14.12678002,97375.0,97374.0,0.81583076]
[1738749776762,14.08570202,97375.0,97374.0,0.81593756]
[1738749777913,14.01830779,97375.0,97374.0,0.81593756]
[1738749778115,13.99776879,97375.0,97374.0,0.81593756]
[1738749778316,13.87453479,97375.0,97374.0,0.81593756]
[1738749778524,13.87453479,97375.0,97374.0,0.72683756]
[1738749778730,13.87453479,97375.0,97374.0,0.73403756]
[1738749779410,13.79237879,97375.0,97374.0,0.73403756]
[1738749779543,13.77183979,97375.0,97374.0,0.72403756]
[1738749780537,13.77183979,97375.0,97374.0,0.70103756]
[1738749780538,13.75283979,97375.0,97374.0,0.70103756]
[1738749780690,13.75283979,97375.0,97374.0,0.72403756]
[1738749784741,13.73383979,97375.0,97374.0,0.72403756]
[1738749789741,13.71483979,97375.0,97374.0,0.72403756]
[1738749794792,13.69583979,97375.0,97374.0,0.72403756]
[1738749799674,13.67683979,97375.0,97374.0,0.72403756]
[1738749801116,13.75703979,97375.0,97374.0,0.72403756]
[1738749803000,13.75703979,97375.0,97374.0,0.40373756]
[1738749803207,13.67683979,97375.0,97374.0,0.40373756]
[1738749803525,13.67683979,97375.0,97374.0,0.39653756]
[1738749803667,13.67683979,97375.0,97374.0,0.40373756]
[1738749804795,13.65783979,97375.0,97374.0,0.40373756]
[1738749810573,13.63883979,97375.0,97374.0,0.40373756]
[1738749811020,13.63883979,97375.0,97374.0,0.39373756]
[1738749814094,13.59776179,97375.0,97374.0,0.39373756]
[1738749814384,13.53614479,97375.0,97374.0,0.39373756]
[1738749814825,13.51714479,97375.0,97374.0,0.39373756]
[1738749818545,13.59264479,97375.0,97374.0,0.39373756]
[1738749818766,13.63814479,97375.0,97374.0,0.21353756]
[1738749818952,13.63814479,97375.0,97374.0,0.22073756]
[1738749819163,13.63814479,97375.0,97374.0,0.37073756]
[1738749819364,13.63814479,97375.0,97374.0,0.22073756]
[1738749821171,13.63814479,97375.0,97374.0,0.24373756]
[1738749821370,13.51714479,97375.0,97374.0,0.24373756]
[1738749823160,13.49660579,97375.0,97374.0,0.71403756]
[1738749823493,13.45552779,97375.0,97374.0,0.71403756]
[1738749824791,13.43652779,97375.0,97374.0,0.71403756]
[1738749829729,13.41739039,97375.0,97374.0,0.71403756]
[1738749831251,7.66563295,97375.0,97374.0,0.71403756]
[1738749832210,7.60401595,97375.0,97374.0,0.71403756]
[1738749833905,7.50132095,97375.0,97374.0,0.80933756]
[1738749834092,7.50132095,97375.0,97374.0,0.83549482]
[1738749834302,7.48078195,97375.0,97374.0,0.83549482]
[1738749834646,7.42070395,97375.0,97374.0,0.83549482]
[1738749835716,7.37962595,97375.0,97374.0,0.83549482]
[1738749836075,7.33854795,97375.0,97374.0,2.41572082]
[1738749836287,7.31800895,97375.0,97374.0,1.06008582]
[1738749836482,7.29746995,97375.0,97374.0,1.06008582]
[1738749838738,7.27693095,97375.0,97374.0,1.59648582]
[1738749839150,7.25639195,97375.0,97374.0,1.59648582]
[1738749839551,7.19477495,97375.0,97374.0,1.59648582]
[1738749839751,7.13469695,97375.0,97374.0,1.59648582]
[1738749840378,7.11415795,97375.0,97374.0,1.59648582]
[1738749840551,7.03200195,97375.0,97374.0,1.37189482]
[1738749840754,7.03200195,97375.0,97374.0,1.83233082]
[1738749841358,7.01146295,97375.0,97374.0,1.83233082]
[1738749841780,6.99092395,97375.0,97374.0,1.83233082]
[1738749841983,6.92930695,97375.0,97374.0,1.83233082]
[1738749842368,6.88822895,97375.0,97374.0,1.83233082]
[1738749842727,6.86768995,97375.0,97374.0,1.83233082]
[1738749842893,6.84715095,97375.0,97374.0,1.83233082]
[1738749843082,6.82661195,97375.0,97374.0,1.86280842]
[1738749843881,6.76499495,97375.0,97374.0,1.86280842]
[1738749844088,6.74445595,97375.0,97374.0,1.86280842]
[1738749844717,6.70491695,97375.0,97374.0,1.86280842]
[1738749844924,6.68437795,97375.0,97374.0,1.86280842]
[1738749845343,6.60222195,97375.0,97374.0,1.86280842]
[1738749846107,6.58168295,97375.0,97374.0,1.86280842]
[1738749846394,6.49952695,97375.0,97374.0,1.86280842]
[1738749846601,6.45844895,97375.0,97374.0,1.86280842]
[1738749847036,6.45844895,97375.0,97374.0,1.54800542]
[1738749847223,6.45694895,97375.0,97374.0,1.54800542]
[1738749847436,6.43640995,97375.0,97374.0,1.54800542]
[1738749847835,6.35425395,97375.0,97374.0,1.50493842]
[1738749847991,6.35425395,97375.0,97374.0,1.27043756]
[1738749848390,6.33371495,97375.0,97374.0,1.27043756]
[1738749848592,6.27209795,97375.0,97374.0,1.27043756]
[1738749848888,6.25155895,97375.0,97374.0,1.27043756]
[1738749849306,6.23101995,97375.0,97374.0,1.27043756]
[1738749849767,6.19148095,97375.0,97374.0,1.27043756]
[1738749849953,6.17094195,97375.0,97374.0,1.27043756]
[1738749850404,6.15040295,97375.0,97374.0,1.27043756]
[1738749850600,6.08878595,97375.0,97374.0,1.27043756]
[1738749851376,6.08878595,97375.0,97374.0,1.19812156]
[1738749851891,6.08878595,97375.0,97374.0,1.22112156]
[1738749852288,6.08878595,97375.0,97374.0,1.37112156]
[1738749854675,6.08878595,97375.0,97374.0,0.83472156]
[1738749854873,6.06978595,97375.0,97374.0,0.71403756]
[1738749855048,6.06978595,97375.0,97374.0,0.83552956]
[1738749858676,6.06978595,97375.0,97374.0,0.94552956]
[1738749858883,6.00816895,97375.0,97374.0,0.96127143]
[1738749859072,6.00816895,97375.0,97374.0,0.9670133]
[1738749859534,6.00816895,97375.0,97374.0,0.95552956]
[1738749859703,5.98916895,97375.0,97374.0,0.95552956]
[1738749859907,5.98916895,97375.0,97374.0,0.93552956]
[1738749861953,5.98916895,97375.0,97374.0,0.81403756]
[1738749862537,5.98916895,97375.0,97374.0,2.09802456]
[1738749862712,5.98916895,97375.0,97374.0,2.14197556]
[1738749862904,5.98916895,97375.0,97374.0,2.01678356]
[1738749863605,5.98916895,97375.0,97374.0,2.02718954]
[1738749864772,5.97016895,97375.0,97374.0,2.02718954]
[1738749867949,5.97016895,97375.0,97374.0,2.03718954]
[1738749868151,5.92909095,97375.0,97374.0,2.03718954]
[1738749868355,5.88801295,97375.0,97374.0,2.03718954]
[1738749868553,5.84693495,97375.0,97374.0,2.03718954]
[1738749868783,5.82639595,97375.0,97374.0,2.03718954]
[1738749869507,5.73647625,97375.0,97374.0,2.03718954]
[1738749869655,4.93000827,97375.0,97374.0,2.22428918]
[1738749869850,4.63119784,97375.0,97374.0,2.22428918]
[1738749870150,4.53747787,97375.0,97374.0,2.22428918]
[1738749870297,4.38906815,97375.0,97374.0,2.76068918]
[1738749870502,4.2323362,97375.0,97374.0,2.76068918]
[1738749870697,4.2311362,97375.0,97374.0,2.7502832]
[1738749871324,4.2105972,97375.0,97374.0,2.7502832]
[1738749871528,4.086566,97375.0,97374.0,2.7502832]
[1738749872324,4.066027,97375.0,97374.0,2.7502832]
[1738749872526,4.024949,97375.0,97374.0,1.5475372]
[1738749872841,3.47414824,97375.0,97374.0,1.5475372]
[1738749873047,3.47414824,97375.0,97374.0,5.0291622]
[1738749873255,3.47414824,97375.0,97374.0,5.0591622]
[1738749873451,3.4118447,97375.0,97374.0,5.0591622]
[1738749874306,3.3913057,97375.0,97374.0,5.0591622]
[1738749874500,3.3502277,97375.0,97374.0,4.9835212]
[1738749874701,3.3106887,97375.0,97374.0,4.9835212]
[1738749875181,3.2901497,97375.0,97374.0,4.9835212]
[1738749875387,3.2490717,97375.0,97374.0,4.8936182]
[1738749875580,2.72048905,97375.0,97374.0,4.8936182]
[1738749875774,2.67941105,97375.0,97374.0,4.8768732]
[1738749875974,2.65887205,97375.0,97374.0,4.8150422]
[1738749876377,2.61779405,97375.0,97374.0,4.8029132]
[1738749876588,2.57671605,97375.0,97374.0,4.6386822]
[1738749876759,2.55617705,97375.0,97374.0,4.6103962]
[1738749877277,2.53563805,97375.0,97374.0,4.6103962]
[1738749879183,2.47402105,97375.0,97374.0,4.6103962]
[1738749879608,2.43294305,97375.0,97374.0,4.5717582]
[1738749879762,2.35232605,97375.0,97374.0,4.5717582]
[1738749879975,2.35232605,97375.0,97374.0,4.5084162]
[1738749880397,2.33178705,97375.0,97374.0,4.5084162]
[1738749880639,2.31124805,97375.0,97374.0,4.5084162]
[1738749881004,2.29070905,97375.0,97374.0,4.5084162]
[1738749881408,2.24963105,97375.0,97374.0,4.51852555]
[1738749881605,2.18801405,97375.0,97374.0,3.93465931]
[1738749881847,2.18801405,97375.0,97374.0,3.93185931]
[1738749882025,2.18801405,97375.0,97374.0,3.77945931]
[1738749882361,2.18801405,97375.0,97374.0,3.87143091]
[1738749882739,2.18801405,97375.0,97374.0,3.88443091]
[1738749882946,2.18801405,97375.0,97374.0,3.89443091]
[1738749883265,2.18801405,97375.0,97374.0,4.09853391]
[1738749883402,2.18801405,97375.0,97374.0,4.08853391]
[1738749883603,2.18801405,97375.0,97374.0,3.69048091]
[1738749884373,2.18801405,97375.0,97374.0,3.69328091]
[1738749884540,2.18801405,97375.0,97374.0,3.29453656]
[1738749884737,2.16901405,97375.0,97374.0,3.17733656]
[1738749884955,2.16901405,97375.0,97374.0,2.96824656]
[1738749885153,2.16901405,97375.0,97374.0,3.05804656]
[1738749885477,2.16901405,97375.0,97374.0,3.08824656]
[1738749885697,2.16901405,97375.0,97374.0,3.07824656]
[1738749886260,2.16901405,97375.0,97374.0,3.09872989]
[1738749886733,2.16901405,97375.0,97374.0,3.08872989]
[1738749886921,2.16901405,97375.0,97374.0,3.09872989]
[1738749888226,2.16901405,97375.0,97374.0,3.11377887]
[1738749888671,2.06631905,97375.0,97374.0,3.11377887]
[1738749889705,1.98420205,97375.0,97374.0,3.11377887]
[1738749891371,1.96366305,97375.0,97374.0,3.11377887]
[1738749891692,1.94312405,97375.0,97374.0,3.11377887]
[1738749891845,1.88150705,97375.0,97374.0,3.11377887]
[1738749892005,1.88150705,97375.0,97374.0,3.46217887]
[1738749892208,1.6442646,97375.0,97374.0,3.53737887]
[1738749892466,1.36377891,97375.0,97374.0,3.53737887]
[1738749892692,1.36071823,97375.0,97374.0,3.53737887]
[1738749892981,0.36071823,97375.0,97374.0,3.53737887]
[1738749893393,0.293468,97375.0,97374.0,3.53737887]
[1738749893603,0.252392,97375.0,97374.0,3.55095744]
[1738749893758,0.252392,97375.0,97374.0,1.83314844]
[1738749893961,0.24549065,97375.0,97374.0,1.83314844]
[1738749894178,0.24549065,97375.0,97374.0,6.29147244]
[1738749894362,0.18387665,97375.0,97374.0,6.20176144]
[1738749894559,0.14280065,97375.0,97374.0,5.91244744]
[1738749894761,0.12380065,97375.0,97374.0,5.91244744]
[1738749895367,0.10326265,97375.0,97374.0,5.91244744]
[1738749895572,0.06218665,97375.0,97374.0,5.91244744]
[1738749896649,0.01764865,97375.0,97374.0,5.91244744]
[1738749896978,1.5e-07,97381.0,97380.0,0.347035]
[1738749897121,1.5e-07,97381.0,97380.0,0.44953865]
[1738749897317,1.5e-07,97381.0,97380.0,0.47724429]
[1738749899256,1.5e-07,97381.0,97380.0,0.57724429]
[1738749899861,0.06092443,97410.0,97409.0,0.403989]
[1738749900071,0.06092443,97410.0,97409.0,2.01147365]
[1738749900253,0.06092443,97410.0,97409.0,2.06284765]
[1738749901613,0.06092443,97410.0,97409.0,1.21371265]
[1738749902058,0.06092443,97410.0,97409.0,1.07446665]
[1738749902271,0.06092443,97410.0,97409.0,1.05146665]
[1738749903562,0.06092443,97410.0,97409.0,0.90484665]
[1738749903736,0.06092443,97410.0,97409.0,0.73399265]
[1738749903939,0.10682443,97410.0,97409.0,0.25250365]
[1738749904143,0.10682443,97410.0,97409.0,0.10970365]
[1738749904748,0.08782443,97410.0,97409.0,0.10970365]
[1738749905523,0.08782443,97410.0,97409.0,0.25970365]
[1738749908336,0.08782443,97410.0,97409.0,0.41369265]
[1738749909723,0.06882443,97410.0,97409.0,0.41369265]
[1738749912596,0.06882443,97410.0,97409.0,0.60391865]
[1738749913444,0.06882443,97410.0,97409.0,0.41369265]
[1738749913676,0.06882443,97410.0,97409.0,0.62066865]
[1738749914364,0.0459,97410.0,97409.0,0.62066865]
[1738749914512,0.0459,97410.0,97409.0,0.64366865]
[1738749914718,0.0269,97410.0,97409.0,0.60479865]
[1738749915130,0.0270068,97410.0,97409.0,0.60479865]
[1738749918977,0.0001068,97410.0,97409.0,0.60479865]
[1738749919837,0.0577068,97415.0,97414.0,0.153981]
[1738749920038,0.0577068,97415.0,97414.0,0.40648465]
[1738749921392,0.1045068,97415.0,97414.0,0.25970365]
[1738749922357,0.10433647,97415.0,97414.0,0.25970365]
[1738749922755,0.10433647,97415.0,97414.0,0.10970365]
[1738749923967,0.10424515,97415.0,97414.0,0.10970365]
[1738749924909,0.08524515,97415.0,97414.0,0.10970365]
[1738749926652,0.08535195,97415.0,97414.0,0.10970365]
[1738749928163,0.08535195,97415.0,97414.0,0.41368465]
[1738749928387,0.0001068,97415.0,97414.0,0.41368465]
[1738749929760,0.0618068,97423.0,97419.0,0.15]
[1738749929919,0.0618068,97423.0,97421.0,0.15]
[1738749930117,0.06308994,97423.0,97422.0,0.10250365]
[1738749930334,0.0618068,97423.0,97422.0,0.10250365]
[1738749930530,0.0618068,97423.0,97421.0,0.15]
[1738749931360,0.0499,97424.0,97411.0,0.15]
[1738749931588,0.0492,97422.0,97415.0,0.10250365]
[1738749931787,0.00128324,97421.0,97415.0,0.10250365]
[1738749931984,0.00128324,97421.0,97416.0,0.0072]
[1738749932167,0.00128324,97421.0,97417.0,0.10250365]
[1738749932361,0.0492,97422.0,97417.0,0.10250365]
[1738749932790,0.0753,97421.0,97417.0,0.10250365]
[1738749933366,0.0753,97421.0,97411.0,0.15]
[1738749933567,0.0793,97418.0,97412.0,0.10970365]
[1738749933777,0.205277,97430.0,97412.0,0.10970365]
[1738749933778,0.0793,97415.0,97412.0,0.10970365]
[1738749934019,0.08058328,97415.0,97412.0,0.10970365]
[1738749934311,0.08058328,97415.0,97412.0,0.10862955]
[1738749934716,0.06158328,97415.0,97412.0,0.10862955]
[1738749938154,0.0603,97415.0,97412.0,0.10862955]
[1738749938360,0.0603,97415.0,97412.0,0.10885383]
[1738749939863,0.0413,97415.0,97412.0,0.10885383]
[1738749943466,0.0413,97415.0,97413.0,0.0072]
[1738749943654,0.0413,97415.0,97414.0,0.10250365]
[1738749944727,0.0223,97415.0,97414.0,0.10250365]
[1738749944901,0.0487,97416.0,97414.0,0.10250365]
[1738749945082,0.0487,97416.0,97414.0,0.25648465]
[1738749945488,0.0487,97416.0,97414.0,0.10250365]
[1738749946521,0.0487,97416.0,97414.0,0.25648465]
[1738749946685,0.0487,97416.0,97415.0,0.15398]
[1738749946883,0.0487,97416.0,97415.0,0.25648365]
[1738749948326,0.0100613,97421.0,97418.0,0.153974]
[1738749948527,0.0001068,97423.0,97419.0,0.10250365]
[1738749949482,0.01014782,97423.0,97419.0,0.10250365]
[1738749949683,0.01014782,97423.0,97420.0,0.205295]
[1738749949684,0.0001068,97423.0,97420.0,0.205295]
[1738749949889,0.0001068,97423.0,97421.0,0.25647365]
[1738749950269,0.0001068,97423.0,97421.0,0.10250365]
[1738749950609,0.0001068,97423.0,97421.0,0.25647365]
[1738749950808,0.0001068,97423.0,97421.0,0.10250365]
[1738749958427,0.0001068,97423.0,97422.0,0.0072]
[1738749958626,0.08239005,97423.0,97420.0,0.10250365]
[1738749958790,0.0456,97422.0,97419.0,0.00022428]
[1738749958990,0.00128338,97421.0,97419.0,0.00022428]
[1738749960419,0.15525438,97421.0,97419.0,0.00022428]
[1738749960620,0.153972,97420.0,97419.0,0.00022428]
[1738749960823,0.15525537,97420.0,97419.0,0.00022428]
[1738749961024,0.02036373,97420.0,97419.0,0.00022428]
[1738749961951,0.17433573,97420.0,97419.0,0.00022428]
[1738749962147,0.02036373,97420.0,97419.0,0.00022428]
[1738749964407,0.21061689,97420.0,97419.0,0.00022428]
[1738749964624,0.20933352,97420.0,97419.0,0.00022428]
[1738749964822,0.17305236,97420.0,97419.0,0.00022428]
[1738749965059,0.17433576,97420.0,97419.0,0.00022428]
[1738749965612,0.02036376,97420.0,97419.0,0.00022428]
[1738749967120,0.0012834,97420.0,97419.0,0.00022428]
[1738749967318,0.2371554,97420.0,97419.0,0.00022428]
[1738749967629,0.30225749,97420.0,97419.0,0.00022428]
[1738749968062,0.235872,97420.0,97419.0,0.00022428]
[1738749969518,0.25493383,97420.0,97419.0,0.00022428]
[1738749969930,0.10096183,97420.0,97419.0,0.00022428]
[1738749970134,0.02034525,97420.0,97419.0,0.00022428]
[1738749971508,0.00128342,97420.0,97419.0,0.00022428]
[1738749971708,0.15525542,97420.0,97419.0,0.00022428]
[1738749972111,0.00128342,97420.0,97419.0,0.00022428]
[1738749973953,0.15525542,97420.0,97419.0,0.00022428]
[1738749975103,0.15525542,97420.0,97414.0,0.00022428]
[1738749975104,0.27518,97415.0,97414.0,0.00022428]
[1738749975361,0.47224365,97415.0,97414.0,0.00022428]
[1738749975913,0.48224365,97415.0,97414.0,0.00022428]
[1738749976321,0.5445784,97415.0,97414.0,0.00022428]
[1738749977291,0.5345784,97415.0,97414.0,0.00022428]
[1738749977463,0.33751475,97415.0,97414.0,0.00022428]
[1738749977891,0.34766417,97415.0,97414.0,0.00022428]
[1738749978041,0.11818417,97415.0,97414.0,0.00022428]
[1738749978246,0.42989572,97415.0,97414.0,0.00022428]
[1738749978598,0.58259217,97415.0,97414.0,0.00022428]
[1738749979334,0.55212738,97415.0,97414.0,0.00022428]
[1738749986968,0.39814738,97415.0,97414.0,0.00022428]
[1738749987167,0.35244738,97415.0,97414.0,0.00022428]
[1738749988128,0.50642738,97415.0,97414.0,0.00022428]
[1738749988749,0.35244738,97415.0,97414.0,0.00022428]
[1738749988899,0.50642738,97415.0,97414.0,0.00022428]
[1738749989686,0.48737942,97415.0,97414.0,0.00022428]
[1738749991293,0.33339942,97415.0,97414.0,0.00022428]
[1738749993421,0.01014942,97415.0,97414.0,0.10272793]
[1738749993627,0.0001068,97419.0,97415.0,0.0825]
[1738749993827,0.0001068,97419.0,97418.0,0.153975]
[1738749994004,0.0001068,97419.0,97418.0,0.34613865]
[1738750001097,0.0001068,97419.0,97418.0,0.49613865]
[1738750001997,0.0001068,97419.0,97418.0,0.54523865]
[1738750004958,0.1359767,97450.0,97434.0,0.0794]
[1738750005144,0.00128296,97449.0,97435.0,0.10250365]
[1738750005353,0.00128296,97448.0,97435.0,0.10250365]
[1738750006124,0.153936,97443.0,97436.0,0.00716]
[1738750006327,0.00128301,97442.0,97437.0,0.10250365]
[1738750007311,0.00128298,97447.0,97437.0,0.10250365]
[1738750007478,0.00128298,97446.0,97437.0,0.10250365]
[1738750009491,0.02,97438.0,97437.0,0.10250365]
[1738750009712,0.00284,97433.0,97431.0,0.153953]
[1738750009927,0.00284,97433.0,97432.0,0.10966365]
[1738750010335,0.00284,97433.0,97432.0,0.26361665]
[1738750011612,0.00284,97433.0,97432.0,0.10966365]
[1738750012675,0.00284,97433.0,97432.0,0.26361665]
[1738750014788,0.00284,97433.0,97432.0,0.10966365]
[1738750019659,0.00284,97433.0,97429.0,0.023014]
[1738750019809,0.00284,97433.0,97420.0,0.0769]
[1738750019810,0.00128315,97432.0,97420.0,0.0769]
[1738750019975,0.00128315,97432.0,97421.0,0.10250365]
[1738750021691,0.00128315,97432.0,97421.0,0.10272793]
[1738750022409,0.00128315,97432.0,97422.0,0.153969]
[1738750022621,0.00128315,97432.0,97423.0,0.10250365]